bitfinex/quotes_ETHUSD_20230109
["timestamp","ask_amount","ask_price","bid_price","bid_amount"]
[1673265169924,1.373,1320.8,1320.6,7.77759729]
[1673265170469,1.373,1320.8,1320.6,7.77740729]
[1673265170671,8.25485138,1321.0,1320.6,15.35465375]
[1673265170870,10.38047291,1321.0,1320.6,15.35465375]
[1673265171535,10.38047291,1321.0,1320.6,11.78234375]
[1673265171868,7.62236716,1320.9,1320.6,0.20529729]
[1673265172175,7.68836716,1320.9,1320.6,7.71151729]
[1673265172391,9.26394374,1320.9,1320.6,7.77751729]
[1673265172972,9.26394374,1320.9,1320.6,15.34982729]
[1673265173438,1.373,1320.7,1320.6,0.20529729]
[1673265173630,1.373,1320.7,1320.6,0.13929729]
[1673265173631,16.51648,1320.7,1320.6,0.13929729]
[1673265173821,33.63705011,1320.7,1320.6,0.13929729]
[1673265174034,26.06531011,1320.7,1320.6,0.13929729]
[1673265174252,12.24420295,1320.7,1320.6,0.13929729]
[1673265174601,18.49357011,1320.7,1320.6,0.13929729]
[1673265174759,27.38768295,1320.7,1320.6,0.13929729]
[1673265174975,12.24420295,1320.7,1320.6,0.13929729]
[1673265175395,4.67246295,1320.7,1320.6,0.13929729]
[1673265175611,4.60646295,1320.7,1320.6,0.13929729]
[1673265176137,1.373,1320.7,1320.6,15.28391729]
[1673265176329,1.373,1320.7,1320.6,7.77760729]
[1673265177536,1.373,1320.7,1320.6,15.34991729]
[1673265177988,1.373,1320.7,1320.6,7.77760729]
[1673265178967,1.373,1320.7,1320.6,0.20529729]
[1673265179129,2.33505672,1320.7,1320.6,7.71160729]
[1673265179322,2.33505672,1320.7,1320.6,7.77760729]
[1673265179562,3.79766064,1320.3,1319.5,4.17054847]
[1673265179745,3.79766064,1319.9,1319.3,0.7338994]
[1673265179953,4.533,1320.0,1319.4,15.15836]
[1673265180171,6.3704706,1320.1,1319.4,15.21036]
[1673265180424,6.3704706,1320.1,1319.4,15.22436]
[1673265180645,6.9389706,1320.1,1319.5,0.75832536]
[1673265180812,6.9389706,1320.1,1319.6,22.73293]
[1673265180813,1.373,1320.0,1319.6,22.73293]
[1673265181019,1.373,1320.0,1319.6,23.15943]
[1673265181460,1.373,1320.0,1319.6,0.066]
[1673265181461,0.5686,1319.9,1319.6,0.066]
[1673265181672,0.5686,1319.9,1319.5,15.22241]
[1673265181845,0.5686,1319.9,1319.6,7.57776]
[1673265182055,1.373,1320.0,1319.7,4.0]
[1673265182376,1.5169,1320.0,1319.9,0.21245418]
[1673265182625,0.066,1320.2,1319.9,0.21245418]
[1673265182828,1.5808122,1320.4,1320.0,0.3604]
[1673265183152,1.5808122,1320.4,1320.1,15.15012]
[1673265183372,1.5808122,1320.4,1320.1,8.39738536]
[1673265183541,1.87619342,1320.4,1320.1,8.39946536]
[1673265183736,1.87619342,1320.4,1320.1,15.97464536]
[1673265183947,1.87619342,1320.4,1320.2,11.5744]
[1673265184190,1.87619342,1320.4,1320.2,0.066]
[1673265184420,3.24919342,1320.4,1320.2,4.0]
[1673265184785,3.24919342,1320.4,1320.2,11.57447]
[1673265185046,1.87619342,1320.4,1320.2,11.64047]
[1673265185259,1.5808122,1320.4,1320.2,19.21507]
[1673265185413,1.363,1320.5,1320.2,11.64047]
[1673265185962,1.363,1320.5,1320.2,4.066]
[1673265186171,1.363,1320.5,1320.2,4.0]
[1673265186593,1.363,1320.5,1320.2,11.57451]
[1673265186803,2.33429614,1320.5,1320.2,11.64051]
[1673265187056,2.33429614,1320.5,1320.2,19.21511]
[1673265188005,2.33429614,1320.5,1320.2,26.78971]
[1673265189061,1.363,1320.5,1320.2,26.78971]
[1673265189796,1.363,1320.5,1320.0,8.57533]
[1673265189797,2.739,1320.3,1320.0,8.57533]
[1673265189952,19.51422064,1320.3,1320.2,0.066]
[1673265190162,0.00770408,1320.0,1319.9,0.21245418]
[1673265190580,0.00770408,1320.0,1319.9,7.78878418]
[1673265190792,0.00770408,1320.0,1319.9,15.43111418]
[1673265191050,0.00770408,1320.0,1319.9,0.27845418]
[1673265191251,0.00770408,1320.0,1319.9,0.21245418]
[1673265191646,2.74670408,1320.0,1319.9,0.21245418]
[1673265191875,4.22785424,1320.0,1319.9,0.21245418]
[1673265192413,1.48885424,1320.0,1319.9,0.21245418]
[1673265192632,0.57630408,1320.0,1319.9,0.21245418]
[1673265193136,0.00770408,1320.0,1319.9,0.21245418]
[1673265195238,0.00770408,1320.0,1319.9,7.78878418]
[1673265195418,0.00770408,1320.0,1319.9,7.85478418]
[1673265195641,0.00770408,1320.0,1319.9,0.27845418]
[1673265195832,0.00770408,1320.0,1319.9,0.21245418]
[1673265196576,14.12111472,1320.0,1319.9,0.21245418]
[1673265196890,31.77497227,1320.0,1319.9,0.21245418]
[1673265197575,39.35072227,1320.0,1319.9,0.21245418]
[1673265197726,31.77497227,1320.0,1319.9,0.21245418]
[1673265197945,33.03668077,1320.0,1319.9,0.21245418]
[1673265198302,46.40368077,1320.0,1319.5,0.002]
[1673265198530,46.40368077,1320.0,1319.3,0.7338994]
[1673265198531,11.75566064,1319.7,1319.3,0.7338994]
[1673265198834,10.78622748,1319.6,1319.3,8.3134594]
[1673265199042,10.85222748,1319.6,1319.3,0.7998994]
[1673265199210,10.85222748,1319.6,1319.3,0.7338994]
[1673265199619,4.43246064,1319.6,1319.3,0.7338994]
[1673265199847,12.53548236,1319.6,1319.3,0.7338994]
[1673265200039,12.60148236,1319.6,1319.3,0.7338994]
[1673265200417,1.369,1319.4,1319.3,0.7338994]
[1673265200562,5.16666064,1319.4,1319.3,0.7338994]
[1673265200776,5.23266064,1319.4,1319.3,0.7338994]
[1673265201021,2.60024275,1319.4,1319.3,0.7338994]
[1673265201239,2.53424275,1319.4,1319.3,0.7338994]
[1673265201772,1.439,1319.5,1319.3,0.7338994]
[1673265201981,1.373,1319.5,1319.3,15.8934394]
[1673265202193,2.38405488,1319.6,1319.3,15.9594394]
[1673265202500,0.066,1319.7,1319.3,15.9594394]
[1673265202676,3.79766064,1319.7,1319.3,15.9594394]
[1673265202897,3.79766064,1319.7,1319.3,8.3796694]
[1673265202898,14.21742748,1319.7,1319.3,8.3796694]
[1673265203102,25.75357748,1319.6,1319.3,0.7998994]
[1673265203307,1.373,1319.4,1319.3,0.7338994]
[1673265203538,1.21592275,1319.4,1319.3,0.7338994]
[1673265204976,41.65275023,1319.4,1319.1,0.066]
[1673265205187,4.0,1319.2,1318.9,2.65310714]
[1673265205466,13.76172942,1319.1,1318.9,2.65310714]
[1673265205622,13.82772942,1319.1,1318.8,7.69427461]
[1673265205822,8.81543358,1319.1,1318.8,7.69427461]
[1673265206276,8.81543358,1319.1,1318.8,0.11177461]
[1673265206277,1.373,1318.9,1318.8,0.11177461]
[1673265206497,11.56572942,1319.0,1318.8,0.05507785]
[1673265206498,0.066,1319.0,1318.8,0.05507785]
[1673265206826,1.373,1319.2,1318.8,16.51362561]
[1673265206827,1.439,1319.2,1318.8,16.51362561]
[1673265207136,1.439,1319.2,1318.9,3.5]
[1673265207137,3.0,1319.2,1318.9,3.5]
[1673265207292,0.6349,1319.3,1319.0,22.7445]
[1673265207506,1.85072275,1319.4,1319.0,22.80119676]
[1673265207746,1.85072275,1319.4,1319.0,24.16519676]
[1673265207747,0.5688,1319.4,1319.0,24.16519676]
[1673265208010,6.96386878,1319.5,1319.0,24.92352212]
[1673265208170,4.43246064,1319.5,1319.1,4.0]
[1673265208341,4.43246064,1319.5,1319.2,30.32092]
[1673265208342,0.5688,1319.5,1319.2,30.32092]
[1673265208554,0.5688,1319.5,1319.2,30.37761676]
[1673265208783,20.0782,1319.7,1319.2,34.02851097]
[1673265209097,0.066,1319.7,1319.4,22.73724]
[1673265209299,9.6345177,1319.8,1319.4,22.79393676]
[1673265209300,0.7741177,1319.8,1319.4,22.79393676]
[1673265209529,0.7081177,1319.8,1319.4,24.15793676]
[1673265209720,0.1394177,1319.8,1319.4,24.15793676]
[1673265209954,0.1414177,1319.8,1319.6,15.1561]
[1673265210150,0.1394177,1319.8,1319.6,15.21279676]
[1673265211184,0.1394177,1319.8,1319.6,0.066]
[1673265211185,5.17066064,1319.7,1319.6,0.066]
[1673265211408,5.17066064,1319.7,1319.3,7.64557]
[1673265211409,0.03091212,1319.5,1319.3,7.64557]
[1673265212384,0.03091212,1319.5,1319.3,15.22534]
[1673265213740,0.03291212,1319.5,1319.3,15.22334]
[1673265213910,0.03091212,1319.5,1319.3,15.22534]
[1673265214361,0.03091212,1319.5,1319.4,4.0]
[1673265214654,0.03091212,1319.5,1319.4,19.1584]
[1673265214976,0.03091212,1319.5,1319.4,19.2244]
[1673265215573,0.03091212,1319.5,1319.4,26.8036]
[1673265215740,0.03091212,1319.5,1319.4,29.883997]
[1673265222271,0.03091212,1319.5,1319.4,25.883997]
[1673265222465,0.03091212,1319.5,1319.4,22.8036]
[1673265222848,0.03091212,1319.5,1319.4,26.8036]
[1673265225470,0.03091212,1319.5,1319.4,30.60126064]
[1673265225471,2.12e-06,1319.5,1319.4,30.60126064]
[1673265225680,7.7e-06,1319.8,1319.4,26.780386]
[1673265225895,1.77093736,1320.0,1319.7,4.0]
[1673265226115,0.57630408,1320.0,1319.8,30.3076]
[1673265226456,1.70493736,1320.0,1319.8,30.3736]
[1673265226678,1.70493736,1320.0,1319.8,22.7967]
[1673265226679,1.13633736,1320.0,1319.8,22.7967]
[1673265226899,1.13633736,1320.0,1319.8,19.78679902]
[1673265227056,1.70452084,1320.0,1319.8,19.78679902]
[1673265227270,3.3981757,1320.0,1319.8,19.78679902]
[1673265227717,1.12863328,1319.9,1319.8,19.78679902]
[1673265227919,1.12863328,1319.9,1319.8,0.066]
[1673265227920,2.82228814,1319.9,1319.8,0.066]
[1673265228154,3.94761551,1319.7,1319.6,22.79972]
[1673265238361,3.94761551,1319.7,1319.6,30.09781064]
[1673265238733,3.94761551,1319.7,1319.6,26.59781064]
[1673265239191,3.94761551,1319.7,1319.6,31.6384357]
[1673265239942,3.94761551,1319.7,1319.6,31.8684357]
[1673265240246,3.94761551,1319.7,1319.6,28.05081064]
[1673265240466,3.94761551,1319.7,1319.6,26.82781064]
[1673265240682,3.94761551,1319.7,1319.6,22.80015]
[1673265240901,5.06931742,1319.7,1319.6,15.2221]
[1673265241196,5.64884916,1319.7,1319.6,15.2221]
[1673265241830,5.64884916,1319.7,1319.6,22.80015]
[1673265242621,5.64884916,1319.7,1319.6,15.2221]
[1673265242836,5.64884916,1319.7,1319.6,22.80015]
[1673265243256,4.52714725,1319.7,1319.6,22.80015]
[1673265243470,4.46114725,1319.7,1319.6,22.80015]
[1673265243887,12.25644922,1319.7,1319.6,0.066]
[1673265244128,12.25644922,1319.7,1319.1,7.64657]
[1673265244129,39.42121986,1319.7,1319.1,7.64657]
[1673265244349,0.00866365,1319.4,1319.1,22.80841]
[1673265244785,15.43757128,1319.4,1319.1,0.066]
[1673265245088,12.31380808,1319.4,1319.0,15.22838]
[1673265245263,1.12350329,1319.3,1319.0,19.02604064]
[1673265245614,12.31380808,1319.4,1319.0,26.60754064]
[1673265245840,1.12350329,1319.3,1319.0,26.60754064]
[1673265246572,1.12350329,1319.3,1319.0,7.64717]
[1673265246875,2.04619681,1319.3,1319.0,22.81017]
[1673265247090,10.17834622,1319.4,1319.0,22.81017]
[1673265247323,1.12350329,1319.3,1319.0,22.81017]
[1673265248351,3.45222188,1319.4,1319.0,26.61277309]
[1673265248565,3.38622188,1319.4,1319.0,26.61277309]
[1673265248738,1.12350329,1319.3,1319.0,26.61277309]
[1673265249389,2.14133791,1319.3,1319.0,26.61277309]
[1673265249884,2.14133791,1319.3,1319.0,25.61277309]
[1673265250678,1.01783462,1319.3,1319.0,25.61277309]
[1673265250822,10.15477458,1319.4,1319.0,25.61277309]
[1673265251037,3.45222188,1319.4,1319.0,25.61277309]
[1673265251301,3.38622188,1319.4,1319.0,25.61277309]
[1673265251877,10.08877458,1319.4,1319.0,25.61277309]
[1673265252134,10.15477458,1319.4,1319.0,25.61277309]
[1673265252322,1.12350329,1319.3,1319.0,25.61277309]
[1673265252531,5.30303671,1319.4,1319.0,25.61277309]
[1673265252742,1.19816694,1319.4,1319.0,26.98077309]
[1673265252955,1.19816694,1319.4,1319.3,1.377]
[1673265252956,1.13216694,1319.4,1319.3,1.377]
[1673265253171,1.77903071,1319.5,1319.3,35.49374064]
[1673265253172,0.02777577,1319.5,1319.3,35.49374064]
[1673265253412,0.02777577,1319.5,1319.4,4.0]
[1673265253623,0.02777577,1319.5,1319.4,26.7376]
[1673265253832,0.02777577,1319.5,1319.4,26.8036]
[1673265254029,0.02977577,1319.5,1319.4,26.8016]
[1673265254299,0.02777577,1319.5,1319.4,22.8036]
[1673265254709,0.02777577,1319.5,1319.4,26.60126064]
[1673265254907,0.02777577,1319.5,1319.4,30.76970495]
[1673265255431,0.02977577,1319.5,1319.4,30.76770495]
[1673265255657,0.02777577,1319.5,1319.4,31.52803031]
[1673265256008,0.02777577,1319.5,1319.4,40.98458301]
[1673265256228,5.77e-06,1319.5,1319.4,43.98458301]
[1673265256583,3.94761551,1319.7,1319.6,30.3122]
[1673265256797,3.94761551,1319.7,1319.6,40.83708064]
[1673265256995,3.94761551,1319.7,1319.6,41.595406]
[1673265258276,3.94761551,1319.7,1319.6,44.349406]
[1673265260355,3.94761551,1319.7,1319.6,43.59108064]
[1673265261900,4.66957551,1319.7,1319.6,43.59108064]
[1673265262762,0.066,1319.8,1319.6,43.59108064]
[1673265262996,1.12350329,1319.9,1319.8,30.3076]
[1673265263205,1.12350329,1319.9,1319.8,30.3736]
[1673265263523,2.81646231,1320.0,1319.8,30.3736]
[1673265264050,2.81646231,1320.0,1319.8,34.17126064]
[1673265264263,1.13120737,1320.0,1319.9,27.89965064]
[1673265264421,0.00770408,1320.0,1319.9,33.57065064]
[1673265264658,0.00770408,1320.0,1319.9,43.33685193]
[1673265264880,0.00770408,1320.0,1319.9,43.33558405]
[1673265265085,0.00770408,1320.0,1319.9,56.25392349]
[1673265265329,4.08e-06,1320.0,1319.9,62.93537861]
[1673265265505,0.02513613,1320.1,1320.0,4.0]
[1673265265730,0.02513613,1320.1,1320.0,36.49291064]
[1673265265929,0.02513613,1320.1,1320.0,37.93391064]
[1673265266271,0.02513613,1320.1,1320.0,41.99835495]
[1673265266439,0.02513613,1320.1,1320.0,37.99835495]
[1673265266654,6.13e-06,1320.1,1320.0,37.99835495]
[1673265267097,6.13e-06,1320.1,1320.0,37.87235495]
[1673265267501,6.13e-06,1320.1,1320.0,38.03395495]
[1673265268812,6.13e-06,1320.1,1320.0,36.66195495]
[1673265269193,6.13e-06,1320.1,1320.0,36.50035495]
[1673265270143,6.13e-06,1320.1,1320.0,44.55625637]
[1673265270358,6.13e-06,1320.1,1320.0,38.10145495]
[1673265272783,6.13e-06,1320.1,1320.0,37.87735495]
[1673265273406,6.13e-06,1320.1,1320.0,36.51135495]
[1673265276372,6.13e-06,1320.1,1320.0,43.19216712]
[1673265276909,6.13e-06,1320.1,1320.0,44.56916712]
[1673265277066,6.13e-06,1320.1,1320.0,44.93356712]
[1673265277951,6.47e-06,1320.2,1320.0,43.55656712]
[1673265278161,6.47e-06,1320.2,1320.1,51.81036652]
[1673265282075,6.74745512,1320.2,1319.9,19.01614064]
[1673265282276,0.5685,1320.1,1319.9,0.066]
[1673265282495,8.62695512,1320.1,1319.7,7.57714]
[1673265282666,16.26833512,1320.1,1319.8,3.79766064]
[1673265282876,23.84371512,1320.1,1319.8,3.79766064]
[1673265283070,8.69295512,1320.1,1319.7,0.066]
[1673265283280,12.96500951,1320.1,1319.7,11.37483064]
[1673265283535,12.96500951,1320.1,1319.7,11.44083064]
[1673265284166,28.11544951,1320.1,1319.7,3.86366064]
[1673265284490,20.54022951,1320.1,1319.7,11.37501064]
[1673265284670,20.54022951,1320.1,1319.7,11.44101064]
[1673265284856,8.95345,1319.9,1319.7,0.066]
[1673265285066,18.72827263,1319.9,1319.5,15.22257]
[1673265285322,11.15182263,1319.9,1319.5,26.59885064]
[1673265286957,4.47036751,1319.9,1319.6,3.79766064]
[1673265287169,4.40436751,1319.9,1319.6,3.79766064]
[1673265287377,4.40436751,1319.9,1319.7,15.15494]
[1673265287642,4.40436751,1319.9,1319.7,22.79841]
[1673265288010,1.9456,1319.9,1319.7,22.79841]
[1673265288231,1.9476,1319.9,1319.7,22.79641]
[1673265288440,1.9456,1319.9,1319.7,22.79841]
[1673265292527,0.5686,1319.9,1319.8,3.79766064]
[1673265292852,0.5686,1320.0,1319.8,29.9457147]
[1673265293056,0.5686,1320.0,1319.8,26.59436064]
[1673265293294,3.37725823,1320.1,1319.8,26.59436064]
[1673265293494,1.69200329,1320.1,1319.8,26.59436064]
[1673265294545,3.37725823,1320.1,1319.8,26.59436064]
[1673265295159,1.69200329,1320.1,1319.8,30.4115437]
[1673265295364,1.12350329,1320.1,1319.8,30.4115437]
[1673265297357,1.12350329,1320.1,1319.9,3.79766064]
[1673265297573,30.12055494,1320.2,1320.0,3.79766064]
[1673265297574,28.43530329,1320.2,1320.0,3.79766064]
[1673265297829,19.29780329,1320.2,1320.1,30.30072]
[1673265298037,0.06600329,1320.2,1320.1,30.36672]
[1673265298252,3.29e-06,1320.2,1320.1,30.36672]
[1673265299576,3.29e-06,1320.2,1320.1,34.16438064]
[1673265299781,34.93448001,1320.4,1320.1,39.97917006]
[1673265299782,31.55081696,1320.4,1320.1,39.97917006]
[1673265300008,1.77081696,1320.4,1320.1,39.97917006]
[1673265300226,1.70481696,1320.4,1320.1,39.97917006]
[1673265300428,1.70481696,1320.4,1320.1,39.2208447]
[1673265301353,1.68525494,1320.4,1320.1,39.2208447]
[1673265302136,3.93226152,1320.4,1320.2,3.79766064]
[1673265302455,3.93226152,1320.4,1320.3,22.72209]
[1673265302611,1.68525494,1320.4,1320.3,22.78809]
[1673265303248,3.93226152,1320.4,1320.3,22.78809]
[1673265303715,6.51878881,1320.4,1320.3,22.78809]
[1673265304029,4.89953387,1320.4,1320.3,22.78809]
[1673265304237,3.93342539,1320.4,1320.3,22.78809]
[1673265304398,2.24700658,1320.4,1320.3,22.78809]
[1673265304612,3.93331501,1320.4,1320.3,22.78809]
[1673265305252,2.24700658,1320.4,1320.3,22.78809]
[1673265305461,3.9334475,1320.4,1320.3,22.78809]
[1673265306556,2.24700658,1320.4,1320.3,22.78809]
[1673265306731,2.24700658,1320.4,1320.3,15.21406]
[1673265306925,3.9336499,1320.4,1320.3,15.21406]
[1673265307270,30.6178954,1320.4,1320.3,0.066]
[1673265307449,24.24550412,1320.4,1320.1,0.23]
[1673265307658,10.38537017,1320.3,1320.1,4.02766064]
[1673265307869,1.12451607,1320.2,1320.1,4.02766064]
[1673265308763,1.12451607,1320.2,1320.0,0.066]
[1673265308923,5.12443386,1320.1,1319.7,7.842]
[1673265309132,1.19043386,1320.1,1319.9,15.15216]
[1673265309341,1.12443386,1320.1,1319.9,15.21816]
[1673265310003,1.12443386,1320.1,1319.9,22.79449]
[1673265310440,1.12643386,1320.1,1319.9,22.79249]
[1673265310755,1.12443386,1320.1,1319.9,15.21816]
[1673265310918,4.02700822,1320.1,1319.9,15.21816]
[1673265311471,4.02700822,1320.1,1319.9,22.79449]
[1673265312016,1.12443386,1320.1,1319.9,22.79449]
[1673265314070,1.12443386,1320.1,1320.0,3.79766064]
[1673265314280,24.55050796,1320.2,1320.0,26.52491064]
[1673265314496,22.86373386,1320.2,1320.0,26.59091064]
[1673265314704,22.86373386,1320.2,1320.0,30.00807861]
[1673265315121,1.19043386,1320.2,1320.0,30.00807861]
[1673265315331,1.12443386,1320.2,1320.0,30.01301731]
[1673265316535,1.12443386,1320.2,1320.0,26.59584934]
[1673265318659,2.81120796,1320.2,1320.0,26.59584934]
[1673265320510,1.12443386,1320.1,1320.0,26.59584934]
[1673265320719,2.81120796,1320.2,1320.0,26.59584934]
[1673265320986,1.12443386,1320.1,1320.0,26.59584934]
[1673265322502,1.12443386,1320.1,1320.0,26.59197846]
[1673265324817,2.81120796,1320.2,1320.0,26.82197846]
[1673265325278,2.81120796,1320.2,1320.1,3.79766064]
[1673265325493,2.81120796,1320.2,1320.1,26.52320064]
[1673265325711,1.6867741,1320.2,1320.1,26.58920064]
[1673265326494,3.93378068,1320.2,1320.1,26.58920064]
[1673265326709,1.6867741,1320.2,1320.1,26.58920064]
[1673265328542,3.93378068,1320.2,1320.1,26.58920064]
[1673265329077,1.6867741,1320.2,1320.1,26.58920064]
[1673265329668,2.81392443,1320.2,1320.1,26.58920064]
[1673265330613,1.6867741,1320.2,1320.1,26.58920064]
[1673265331067,3.93378068,1320.2,1320.1,26.58920064]
[1673265331258,1.6867741,1320.2,1320.1,26.58920064]
[1673265331973,3.93378068,1320.2,1320.1,26.58920064]
[1673265332185,1.6867741,1320.2,1320.1,26.58920064]
[1673265332604,3.93378068,1320.2,1320.1,26.58920064]
[1673265333023,1.6867741,1320.2,1320.1,26.58920064]
[1673265333246,3.93378068,1320.2,1320.1,26.58920064]
[1673265333891,1.6867741,1320.2,1320.1,26.58920064]
[1673265334654,3.93378068,1320.2,1320.1,26.58920064]
[1673265338514,3.93378068,1320.2,1320.1,30.02918957]
[1673265341746,1.6867741,1320.2,1320.1,26.81920064]
[1673265342204,3.93378068,1320.2,1320.1,26.81920064]
[1673265342627,3.94003816,1320.2,1320.1,26.81920064]
[1673265346410,1.69303158,1320.2,1320.1,26.81920064]
[1673265346887,3.94003816,1320.2,1320.1,26.81920064]
[1673265347336,2.24700658,1320.2,1320.1,26.81920064]
[1673265347580,3.9407332,1320.2,1320.1,26.81920064]
[1673265348270,2.24700658,1320.2,1320.1,26.81920064]
[1673265348515,3.94069353,1320.2,1320.1,26.81920064]
[1673265348849,3.94269353,1320.2,1320.1,26.81720064]
[1673265349036,3.94069353,1320.2,1320.1,26.81920064]
[1673265351741,3.94069353,1320.2,1320.1,22.79154]
[1673265351999,3.5616119,1320.2,1320.1,7.63825207]
[1673265352422,3.5616119,1320.2,1320.1,22.78861207]
[1673265353226,0.73970049,1320.2,1320.1,0.066]
[1673265353553,0.73970049,1320.2,1320.1,7.57518]
[1673265353777,3.56334824,1320.2,1320.1,7.64118]
[1673265354318,3.56334824,1320.2,1320.1,22.79154]
[1673265355351,2.82364775,1320.2,1320.1,22.79154]
[1673265357100,3.29175413,1319.8,1319.7,24.62830168]
[1673265357308,1.28574222,1319.8,1319.7,48.57849272]
[1673265357534,1.28574222,1319.8,1319.7,55.59688576]
[1673265357782,1.28574222,1319.8,1319.7,62.45076696]
[1673265358157,1.28574222,1319.8,1319.7,51.45076696]
[1673265358612,1.28574222,1319.8,1319.7,42.91205408]
[1673265358997,1.28574222,1319.8,1319.7,41.56663408]
[1673265359209,1.28574222,1319.8,1319.7,43.25146576]
[1673265359531,1.28574222,1319.8,1319.7,41.56663408]
[1673265359738,1.28574222,1319.8,1319.7,34.52766104]
[1673265359969,1.28574222,1319.8,1319.7,31.52766104]
[1673265360181,1.28574222,1319.8,1319.7,28.7067068]
[1673265360606,1.28574222,1319.8,1319.7,31.52766104]
[1673265362251,1.28774222,1319.8,1319.7,31.52566104]
[1673265362642,1.28574222,1319.8,1319.7,31.52766104]
[1673265363610,1.28574222,1319.8,1319.7,36.19597814]
[1673265363826,25.23290655,1320.0,1319.7,36.19597814]
[1673265363827,26.35747912,1320.0,1319.7,36.19597814]
[1673265364036,26.35747912,1320.0,1319.9,30.30532]
[1673265364256,26.35747912,1320.0,1319.9,22.79499]
[1673265364257,2.88977912,1320.0,1319.9,22.79499]
[1673265364457,1.12951165,1320.0,1319.9,22.79499]
[1673265364665,2.82377912,1320.0,1319.9,22.79499]
[1673265367099,1.12951165,1320.0,1319.9,22.79499]
[1673265368396,1.12951165,1320.0,1319.9,26.59265064]
[1673265368975,3.39227912,1320.1,1319.9,26.59265064]
[1673265369447,1.12951165,1320.0,1319.9,26.59265064]
[1673265369658,3.39227912,1320.1,1319.9,26.59265064]
[1673265369822,1.12951165,1320.0,1319.9,26.59265064]
[1673265372386,1.12951165,1320.0,1319.9,30.7672817]
[1673265372566,2.82377912,1320.1,1319.9,30.9972817]
[1673265372771,1.12951165,1320.1,1320.0,26.52491064]
[1673265372999,2.82377912,1320.1,1320.0,26.59091064]
[1673265373205,1.12951165,1320.1,1320.0,26.59091064]
[1673265373598,1.12951165,1320.1,1320.0,30.42509781]
[1673265373853,1.12951165,1320.1,1320.0,34.65509781]
[1673265374067,3.01725766,1320.1,1320.0,34.65509781]
[1673265374229,3.01725766,1320.1,1320.0,30.65509781]
[1673265374441,1.88774601,1320.1,1320.0,32.65509781]
[1673265374648,1.88774601,1320.1,1320.0,30.65509781]
[1673265374909,1.88774601,1320.1,1320.0,39.60784781]
[1673265375242,1.12951165,1320.2,1320.1,4.0]
[1673265375384,1.12951165,1320.2,1320.1,11.86913853]
[1673265375595,1.12951165,1320.2,1320.1,34.66067853]
[1673265376059,1.69426747,1320.3,1320.1,34.66067853]
[1673265376060,2.82377912,1320.3,1320.1,34.66067853]
[1673265376225,1.69426747,1320.3,1320.2,26.52146064]
[1673265376448,2.82336982,1320.3,1320.2,26.58746064]
[1673265376691,2.82336982,1320.3,1320.2,26.81746064]
[1673265376906,2.82336982,1320.3,1320.2,4.09366064]
[1673265377116,2.82336982,1320.3,1320.2,27.54497449]
[1673265377307,1.12910235,1320.3,1320.2,27.61097449]
[1673265377776,27.72209077,1320.4,1320.2,27.61097449]
[1673265377777,25.46306747,1320.4,1320.2,27.61097449]
[1673265377910,25.46306747,1320.4,1320.3,26.51975064]
[1673265378119,1.76026747,1320.4,1320.3,26.58575064]
[1673265378431,1.69426747,1320.4,1320.3,26.58575064]
[1673265378678,1.69626747,1320.4,1320.3,26.81375064]
[1673265378896,1.69426747,1320.4,1320.3,26.81575064]
[1673265380222,1.69426747,1320.4,1320.3,31.09159709]
[1673265380537,1.76026747,1320.5,1320.3,31.09159709]
[1673265380742,1.69426747,1320.5,1320.4,3.79766064]
[1673265381009,1.69426747,1320.5,1320.4,26.51804064]
[1673265381309,3.95329077,1320.5,1320.4,26.58404064]
[1673265382337,1.69426747,1320.5,1320.4,26.58404064]
[1673265384682,26.98932018,1320.6,1320.4,31.20783535]
[1673265385292,1.69426747,1320.5,1320.4,31.20783535]
[1673265385496,1.69426747,1320.5,1320.4,31.43783535]
[1673265386427,26.98932018,1320.6,1320.4,31.43783535]
[1673265386639,26.98932018,1320.6,1320.4,26.81404064]
[1673265386843,26.98932018,1320.6,1320.5,3.79766064]
[1673265387051,26.98932018,1320.6,1320.5,26.51630064]
[1673265387052,4.08382018,1320.6,1320.5,26.51630064]
[1673265387261,1.75879688,1320.6,1320.5,26.58230064]
[1673265387514,1.75879688,1320.6,1320.5,30.0208767]
[1673265387515,0.06452941,1320.6,1320.5,30.0208767]
[1673265387724,0.06452941,1320.6,1320.5,30.2508767]
[1673265387901,1.19234139,1320.6,1320.5,30.2508767]
[1673265388319,0.06652941,1320.6,1320.5,30.2488767]
[1673265388574,0.06452941,1320.6,1320.5,30.2508767]
[1673265391207,0.06452941,1320.6,1320.5,31.6278767]
[1673265396020,0.06452941,1320.6,1320.5,30.2508767]
[1673265396231,0.06652941,1320.6,1320.5,26.81030064]
[1673265396489,0.06452941,1320.6,1320.5,26.81230064]
[1673265404560,0.06452941,1320.6,1320.5,26.58230064]
[1673265405744,1.19234139,1320.6,1320.5,26.58230064]
[1673265406107,0.06452941,1320.6,1320.5,26.58230064]
[1673265407173,1.19234139,1320.6,1320.5,26.58230064]
[1673265407793,1.19234139,1320.6,1320.5,19.00942064]
[1673265408126,1.19234139,1320.6,1320.5,26.58230064]
[1673265410467,2.88660886,1320.6,1320.5,26.58230064]
[1673265412450,1.75879688,1320.6,1320.5,26.58230064]
[1673265412778,5.67344731,1320.6,1320.5,0.066]
[1673265413017,5.73944731,1320.6,1320.4,22.78605]
[1673265413315,2.82048616,1320.5,1320.4,26.58371064]
[1673265413680,1.6922917,1320.5,1320.4,26.58371064]
[1673265414454,3.951315,1320.5,1320.4,19.01029064]
[1673265414663,3.951315,1320.5,1320.4,0.066]
[1673265414886,5.37545971,1320.5,1320.4,15.14692]
[1673265415054,5.44145971,1320.5,1320.4,15.21292]
[1673265415262,5.44145971,1320.5,1320.4,22.78638]
[1673265415582,5.44145971,1320.5,1320.4,7.63946]
[1673265415794,5.44145971,1320.5,1320.4,22.78638]
[1673265416415,3.74916801,1320.5,1320.4,22.78638]
[1673265416626,3.68316801,1320.5,1320.4,22.78604019]
[1673265418137,2.2590233,1320.5,1320.4,22.78604019]
[1673265418348,2.2590233,1320.5,1320.4,15.21258019]
[1673265418724,5.08267105,1320.5,1320.4,15.21258019]
[1673265418978,5.14867105,1320.5,1320.4,15.21258019]
[1673265419977,5.14380255,1320.5,1320.4,15.21258019]
[1673265420192,6.45506124,1320.5,1320.4,15.21258019]
[1673265420874,6.45506124,1320.5,1320.4,7.63912019]
[1673265421039,6.45506124,1320.5,1320.4,0.06566019]
[1673265421254,6.45506124,1320.5,1320.4,7.57346]
[1673265421476,6.45506124,1320.5,1320.4,15.21258019]
[1673265421703,6.45506124,1320.5,1320.4,7.63912019]
[1673265421922,4.20090644,1320.5,1320.4,22.78604019]
[1673265422107,4.20090644,1320.5,1320.4,7.63912019]
[1673265422108,4.13490644,1320.5,1320.4,7.63912019]